Cogmind - Beta 9.4 @@@ ROGUE MODE // 2020.01.26 @ 19:37:05 // Winter2019/RPGLIKE Player: Nalzok Result: Destroyed by Y-54 Guardian with Flak Gun Performance ------------- Evolutions (3) 1500 Regions Visited (4) 800 Robots Destroyed (28) 140 Value Destroyed (668) 668 Prototype IDs (3) 60 Alien Tech Used (0) 0 Bonus (11) 11 TOTAL SCORE: 3179 Bonus ------- High Alert Combat Kills 11 Cogmind --------- Core Integrity 0/600 Matter 300/300 Energy 13/140 System Corruption 0% Temperature Cool (0) Movement Rolling (110) Ox1 Location -7/Factory Parts ------- > --- POWER (1) -------- Light Deuterium Engine > --- PROPULSION (2) --- Armored Huge Wheel > --- UTILITY (2) ------ Improved Cooling System Layered Light Armor Plating > --- WEAPON (4) ------- Advanced Plasma Cannon Advanced Plasma Cannon Advanced Plasma Cannon Advanced Plasma Cannon > --- INVENTORY (1) ---- Advanced Targeting Computer Peak State ------------ > --- POWER ------------ Light Deuterium Engine > --- PROPULSION ------- Armored Huge Wheel > --- UTILITY ---------- Improved Cooling System Layered Light Armor Plating > --- WEAPON ----------- Advanced Plasma Cannon Advanced Plasma Cannon Advanced Plasma Cannon Advanced Plasma Cannon > --- INVENTORY -------- Advanced Targeting Computer [Rating: 43] Favorites ----------- Power Light Ion Engine Engine Light Ion Engine Propulsion Aluminum Leg Leg Aluminum Leg Wheel Armored Huge Wheel Utility Heat Sink Device Heat Sink Storage Medium Matter Pod Protection Medium Armor Plating Weapon EM Pulse Cannon Energy Gun Improved Medium Laser Energy Cannon EM Pulse Cannon Ballistic Gun Assault Rifle Ballistic Cannon Improved Light Cannon Build | -11 -10 -9 -8 -7 ------- Run | Scr Mat Mat Mat Fac Slots Evolved 5 | . . . 4 1 Power . | . . . . . Propulsion 1 | . . . . 1 Utility 1 | . . . 1 . Weapon 3 | . . . 3 . Parts Attached 33 | . 3 8 8 14 Power 4 | . 1 2 . 1 Engine 4 | . 1 2 . 1 Core . | . . . . . Reactor . | . . . . . Propulsion 4 | . 1 1 1 1 Treads . | . . . . . Leg 3 | . 1 1 1 . Wheel 1 | . . . . 1 Hover . | . . . . . Flight . | . . . . . Utility 9 | . 1 2 3 3 Device 3 | . . . 2 1 Storage 1 | . 1 . . . Processor . | . . . . . Hackware . | . . . . . Protection 5 | . . 2 1 2 Artifact . | . . . . . Weapon 16 | . . 3 4 9 Energy Gun 2 | . . 1 . 1 Energy Cannon 11 | . . 1 4 6 Ballistic Gun 2 | . . . . 2 Ballistic Cannon 1 | . . 1 . . Launcher . | . . . . . Special Weapon . | . . . . . Impact Weapon . | . . . . . Slashing Weapon . | . . . . . Piercing Weapon . | . . . . . Special Melee Weapon . | . . . . . Unidentified Prototypes 3 | . . 1 . 2 Parts Lost 1 | . . . 1 . Power . | . . . . . Propulsion . | . . . . . Utility 1 | . . . 1 . Weapon . | . . . . . Highest Loss Streak 1 | . . . 1 . Average Slot Usage (%) 93 | . 87 100 93 90 Engine 17 | . 25 25 17 11 Leg 14 | . 25 25 17 2 Wheel 3 | . . . . 8 Device 6 | . . . 8 11 Storage 2 | . 12 5 . . Protection 12 | . . 19 10 11 Energy Gun 4 | . . 15 . . Energy Cannon 25 | . . 4 28 45 Ballistic Gun 2 | . 25 1 . . Ballistic Cannon 3 | . . 3 10 . Naked Turns . | . . . . . Heaviest Build 47 | 5 9 16 32 47 Greatest Support 28 | 10 10 10 15 28 Greatest Overweight (x) 2 | . . 1 2 2 Average Overweight (x) . | . . . 1 1 Largest Inventory Capacity 1 | . . . 1 1 Average Capacity . | . . . . 1 Most Carried 1 | . . . 1 1 Average Carried . | . . . . . Final Capacity 1 | . . . 1 1 Final Carried 1 | . . . 1 1 Class Distribution -------------------- 64% | Mutant 18% | Gunner 9% | Pyromaniac-Gunner 7% | Pyromaniac-Mutant Dominant Class ---------------- Mutant | -10/Materials Mutant | -9/Materials Gunner | -8/Materials Mutant | -7/Factory Resources | -11 -10 -9 -8 -7 ----------- Run | Scr Mat Mat Mat Fac Matter Collected 711 | 200 96 136 139 140 Remotely . | . . . . . Salvage Created 832 | . 125 326 87 294 Parts 66 | . 19 26 6 15 Haulers Intercepted . | . . . . . Recyclers Shooed 1 | . . 1 . . Parts Field Recycled . | . . . . . Retrieved Matter . | . . . . . Parts Self-Destructed . | . . . . . Prevented . | . . . . . Kills | -11 -10 -9 -8 -7 ------- Run | Scr Mat Mat Mat Fac Combat Hostiles Destroyed 19 | . 7 6 2 4 Guns 13 | . 7 6 . . Cannons 5 | . . . 2 3 Classes Destroyed 8 | . 3 4 1 . Worker 4 | . 1 1 1 1 Builder 1 | . . 1 . . Operator 1 | . . 1 . . Watcher 3 | . . 2 . 1 Swarmer 8 | . 5 3 . . Grunt 6 | . 2 2 . 2 Sentry 4 | . . 1 1 2 Hunter 1 | . . . 1 . Best Kill Streak 6 | . 6 4 2 2 Combat Bots Only 5 | . 5 4 1 2 Max Kills in Single Turn 1 | . 1 1 1 1 Gunslinging . | . . . . . Exploded . | . . . . . Melee . | . . . . . Uniques/NPCs Destroyed . | . . . . . Combat | -11 -10 -9 -8 -7 -------- Run | Scr Mat Mat Mat Fac Damage Taken 1321 | . 197 446 184 494 Core 934 | . 154 291 140 349 Absorbed by Shields . | . . . . . Redirected to Core 737 | . 133 207 95 302 Core Remaining (%) 68 | 100 91 50 32 . Volleys Fired 102 | . 25 49 14 14 Largest 4 | . 1 1 1 4 Hottest 392 | . 20 68 39 392 Shots Fired 121 | . 25 49 14 33 Gun 72 | . 25 47 . . Cannon 49 | . . 2 14 33 Launcher . | . . . . . Special . | . . . . . Kinetic 40 | . 25 1 14 . Thermal 76 | . . 48 . 28 Explosive . | . . . . . Electromagnetic 5 | . . . . 5 Robot Hit Streak 22 | . 7 7 4 22 Robot Miss Streak 5 | . 5 4 3 1 Penetration Max . | . . . . . Secondary Targets . | . . . . . Shots Hit Robots 76 | . 18 26 9 23 Core Hits 35 | . 10 13 4 8 Critical Hits 1 | . . 1 . . Critical Kills 1 | . . 1 . . Critical Parts Destroyed . | . . . . . Melee Attacks . | . . . . . Impact . | . . . . . Slashing . | . . . . . Piercing . | . . . . . Sneak Attacks . | . . . . . Combat Hostiles . | . . . . . Follow-up Attacks . | . . . . . Damage Inflicted 1737 | . 261 523 201 752 Guns 742 | . 261 481 . . Cannons 995 | . . 42 201 752 Explosions . | . . . . . Melee . | . . . . . Ramming . | . . . . . Kinetic 484 | . 261 22 201 . Thermal 1151 | . . 501 . 650 Explosive . | . . . . . Electromagnetic 102 | . . . . 102 Impact . | . . . . . Slashing . | . . . . . Piercing . | . . . . . Highest Corruption . | . . . . . Average Corruption . | . . . . . Corruption Purged . | . . . . . Overload Shots . | . . . . . Overflow Damage 11 | . . . . 11 Projectiles 11 | . . . . 11 Explosions . | . . . . . Melee . | . . . . . Knockbacks . | . . . . . Impact . | . . . . . Kinetic . | . . . . . Secondary . | . . . . . Self-Inflicted Damage . | . . . . . Shots . | . . . . . Rammed . | . . . . . Targets Rammed . | . . . . . Kicked . | . . . . . Crushed . | . . . . . Highest Temperature 467 | . . 467 41 330 Average Temperature 118 | . . 132 18 125 Received Heat Transfer 228 | . 42 42 54 90 Effects 6 | . . 2 . 4 Shutdowns 1 | . . 1 . . Energy Bleed 2 | . . 1 . 1 Interference 3 | . . . . 3 Siege Activations . | . . . . . Robots Corrupted 1 | . . . . 1 Combat Hostiles 1 | . . . . 1 Parts Fried . | . . . . . Impact Corruptions . | . . . . . Robots Melted . | . . . . . Combat Hostiles . | . . . . . Parts Melted . | . . . . . Heat Transferred 2073 | . . 1073 . 1000 Parts Sabotaged . | . . . . . Parts Stolen . | . . . . . Parts Stripped . | . . . . . Power Chain Reactions . | . . . . . Missiles Intercepted . | . . . . . Alert | -11 -10 -9 -8 -7 ------- Run | Scr Mat Mat Mat Fac Peak Influence 503 | . 180 206 104 503 Average Influence 144 | . 115 75 70 250 Maximum Alert Level 2 | . . 1 . 2 Low Security (%) 77 | 100 100 95 100 44 Level 1 14 | . . 4 . 34 Level 2 8 | . . . . 20 Level 3 . | . . . . . Level 4 . | . . . . . Level 5 . | . . . . . High Security . | . . . . . Max Security . | . . . . . Squads Dispatched 5 | . 1 1 . 3 Investigation 1 | . . . . 1 Extermination 1 | . . . . 1 Reinforcement 2 | . 1 1 . . Assault 1 | . . . . 1 Garrison . | . . . . . Intercept . | . . . . . Construction Impeded . | . . . . . Haulers Reinforced . | . . . . . Stealth | -11 -10 -9 -8 -7 --------- Run | Scr Mat Mat Mat Fac Distress Signals 2 | . . 1 1 . Communications Jammed . | . . . . . Distress Signals . | . . . . . Times Spotted 32 | . 10 10 6 6 Peak Tracking Total 4 | . 3 4 3 3 Tactical Retreats . | . . . . . Traps | -11 -10 -9 -8 -7 ------- Run | Scr Mat Mat Mat Fac Traps Triggered 2 | . . . . 2 Indirectly . | . . . . . Trap Hack Attempts . | . . . . . Triggered . | . . . . . Disarmed . | . . . . . Reprogrammed . | . . . . . Reused . | . . . . . Traps Extracted . | . . . . . Installed . | . . . . . Triggered . | . . . . . Machines | -11 -10 -9 -8 -7 ---------- Run | Scr Mat Mat Mat Fac Machines Disabled 1 | . . 1 . . Max in Single Turn 1 | . . 1 . . Garrison Access 1 | . . . . 1 Machines Sabotaged . | . . . . . Garrisons Compromised . | . . . . . Overloaded Fab Kills . | . . . . . Fab Network Shutdowns 1 | . . . . 1 Hacking | -11 -10 -9 -8 -7 --------- Run | Scr Mat Mat Mat Fac Machines Accessed 7 | . . 5 1 1 Terminals 6 | . . 5 1 . Fabricators 1 | . . . . 1 Repair Stations . | . . . . . Recycling Units . | . . . . . Scanalyzers . | . . . . . Garrison Access . | . . . . . Total Hacks 17 | . . 10 3 4 Successful 8 | . . 4 1 3 Failed 9 | . . 6 2 1 Catastrophic . | . . . . . Database Lockouts . | . . . . . Manual . | . . . . . Terminals 13 | . . 10 3 . Fabricators 4 | . . . . 4 Repair Stations . | . . . . . Recycling Units . | . . . . . Scanalyzers . | . . . . . Garrison Access . | . . . . . Terminal Hacks 5 | . . 4 1 . Unreport Threat 2 | . . 2 . . Locate Traps 1 | . . 1 . . Recall Investigation 1 | . . . 1 . Zone Layout 1 | . . 1 . . Fabricator Hacks 3 | . . . . 3 Build 3 | . . . . 3 Repair Station Hacks . | . . . . . Recycling Unit Hacks . | . . . . . Scanalyzer . | . . . . . Garrison Access Hacks . | . . . . . Unauthorized Hacks . | . . . . . Terminals . | . . . . . Fabricators . | . . . . . Repair Stations . | . . . . . Recycling Units . | . . . . . Scanalyzers . | . . . . . Garrison Access . | . . . . . Data Cores Recovered 1 | . . 1 . . Used . | . . . . . Hacking Detections 3 | . . 3 . . Full Trace Events 1 | . . 1 . . Feedback Events . | . . . . . Feedback Blocked . | . . . . . Robot Schematics Acquired . | . . . . . Robots Built . | . . . . . Matter . | . . . . . Time . | . . . . . Total Robot Build Rating . | . . . . . Part Schematics Acquired . | . . . . . Parts Built 4 | . . . . 4 Matter 424 | . . . . 424 Time 212 | . . . . 212 Total Part Build Rating 24 | . . . . 24 Parts Repaired . | . . . . . Time . | . . . . . Parts Recycled . | . . . . . Recycled Matter . | . . . . . Retrieved Matter . | . . . . . Retrieved Components . | . . . . . Parts Scanalyzed . | . . . . . Part Schematics Acquired . | . . . . . Parts Damaged . | . . . . . Bothacking | -11 -10 -9 -8 -7 ------------ Run | Scr Mat Mat Mat Fac Used RIF Installer . | . . . . . Robots Hacked . | . . . . . Non-combat . | . . . . . Combat . | . . . . . Robot Hacks Applied . | . . . . . Relay Couplers Released 2 | . . . . 2 Machine Destruction 2 | . . . . 2 Robots Rewired . | . . . . . Allies Hacked . | . . . . . Hacks Repelled . | . . . . . Allies | -11 -10 -9 -8 -7 -------- Run | Scr Mat Mat Mat Fac Total Allies . | . . . . . Largest Group . | . . . . . Highest-Rated Group . | . . . . . Highest-Rated Ally . | . . . . . Total Orders . | . . . . . Ally Attacks . | . . . . . Total Damage . | . . . . . Kills . | . . . . . Allies Corrupted . | . . . . . Allies Melted . | . . . . . Intel | -11 -10 -9 -8 -7 ------- Run | Scr Mat Mat Mat Fac Robot Analysis Total . | . . . . . Derelict Logs Recovered . | . . . . . Drone Launches . | . . . . . Drone Recoveries . | . . . . . Exploration | -11 -10 -9 -8 -7 ------------- Run | Scr Mat Mat Mat Fac Turns Passed 1711 | 9 164 489 396 653 Spaces Moved 827 | 8 87 250 231 251 Core . | . . . . . Treads . | . . . . . Legs 641 | 8 87 250 231 65 Wheels 186 | . . . . 186 Hover . | . . . . . Flight . | . . . . . Fastest Speed 110 | 120 120 120 120 110 Average Speed 139 | 120 120 146 152 128 Slowest Speed 180 | 120 120 150 180 180 Overloaded Moves . | . . . . . Propulsion Burnouts . | . . . . . Robots Hopped . | . . . . . Cave-ins Triggered . | . . . . . Exploration Rate (%) 19 | 1 29 38 23 5 Regions Visited 4 Branch Regions . Pre-discovered Areas . | . . . . . Known Exits Taken . | . . . . . Unknown Exits Taken 4 | 1 1 1 1 . Scrap Searched . | . . . . . Spaces Dug . | . . . . . Terrain Destroyed 2 | . . . . 2 Melee . | . . . . . Projectile 2 | . . . . 2 AOE . | . . . . . Actions | -11 -10 -9 -8 -7 --------- Run | Scr Mat Mat Mat Fac Total 1274 | 7 122 325 258 562 Wait 268 | . . 8 . 260 Move 823 | 7 86 249 230 251 Hop . | . . . . . Pick Up 2 | . . . 1 1 Fast Attach 20 | . 1 4 8 7 Attach . | . . . . . Detach . | . . . . . Swap 13 | . 2 4 . 7 Drop 28 | . 2 8 3 15 Fire 102 | . 25 49 14 14 Melee . | . . . . . Ram . | . . . . . Kick . | . . . . . Crush . | . . . . . Escape Stasis . | . . . . . Rewire . | . . . . . Trap . | . . . . . Miscellaneous 18 | . 6 3 2 7 Route ------- -11/Scrapyard -10/Materials -9/Materials -8/Materials -7/Factory History --------- Turn | Location | Event 1 | -11/Scrapyard | Discovered new exit (range 1) 10 | -11/Scrapyard | Entered Materials 147 | -10/Materials | Discovered new exit (range 3) 174 | -10/Materials | Entered another Materials area 176 | -9/Materials | Reached level 2 309 | -9/Materials | Build established: Mutant 542 | -9/Materials | Core integrity fell below 50% 549 | -9/Materials | Reached level 3 646 | -9/Materials | Discovered new exit (range 6) 663 | -9/Materials | Entered another Materials area 665 | -8/Materials | Reached level 4 728 | -8/Materials | Core integrity fell below 50% 835 | -8/Materials | Upgraded with Utility slot (x1) 835 | -8/Materials | Upgraded with Weapon slot (x3) 1019 | -8/Materials | Discovered new exit (range 13) 1059 | -8/Materials | Entered Factory 1060 | -7/Factory | Core integrity fell below 50% 1061 | -7/Factory | Reached level 5 1134 | -7/Factory | Build established: Gunner 1155 | -7/Factory | Core integrity fell below 20% 1194 | -7/Factory | Upgraded with Propulsion slot (x1) 1318 | -7/Factory | Fabricated Adv. Plasma Cannon (x2) 1350 | -7/Factory | Local fabrication network quarantined 1429 | -7/Factory | Fabricated Adv. Plasma Cannon (x2) 1712 | -7/Factory | Destroyed by Y-54 Guardian with Flak Gun Last Messages --------------- 01678_ Triggered Alarm Trap. 01678_ An alarm sounds. 01678_ ALERT: Alarm triggered, dispatching investigation squad. 01679_ K-01 Serf cleans the Garrison Access. 01680_ Triggered Proton Bomb Trap. 01680_ A bubble of electromagnetic force engulfs the area. 01680_ ALERT: Garrison Access compromised, dispatching assault squad. 01680_ Garrison Access disabled. 01680_ Relay Coupler [Grunt] tumbles out of Garrison Access. 01680_ K-01 Serf destroyed. 01680_ Proton Bomb Trap short circuited. 01680_ A bubble of electromagnetic force engulfs the area. 01681_ G-47 Trooper destroyed. 01687_ Acquired 27 matter. 01693_ U-05 Engineer lays Concrete. 01696_ Destroyed Gatling Laser. 01700_ U-05 Engineer lays Concrete. 01709_ ALERT: Rogue bot located, Programmers report to Factory Zone 8C. 01709_ U-05 Engineer lays Concrete. Map ----- +----------------------------------------------------+ | ?????????????????????????????????????????????????? | | ?????????????????????????????????????????????????? | | ?????????????????????????????????????????????????? | | ?????????????????????????????????????????????????? | | ?????????????????????????????????????????????????? | | ?????????????????????????????????????????????????? | | ?????????????????????????????????????????????????? | | ?????????????????????????????????????????????????? | | ???????????????????????????????????????????????### | | ??????????????????????????????????????????###### | | ????????????????????????????#######???????# # | | ????????##################### #???????# # ! | | ??????? ######### # ! | | ??????? ! [*[ ! ! + ! | | ??????? ############ # | | ???????????########### ###### #??????????# # | | ?????????????????????# #????#######??????????# # | | ?????????????????????# #?????????????????????# # | | ?????????????######### #?????????????????????# ### | | ????????+ #?????????????????????# #?? | | ?????????????######### #?????????????????????# #?? | | ?????????????????????# ########+##???????????# ### | | ?????????????????????# !!= ;#???????????# # = | | ?????????????????????# !%!= ##???????????# # = | | ?????????????????????# u!% ;############# # = | | ?????????????????????# @!! + | | ?????????????????????#### %= ############# # | | ????????????????????????# * "" #???????????# #! | | ????????????????????????#Y #???????????# ### | | ??????????????????????? + ?????????# #?? | | ??????????????????????######## # ?????????# #?# | | ??????????????????????????????# ##?????????### ### | | ??????????????????????????????? #??????????# # | | ?????????????????????????######/############ = # | | ?????????????????????????# !% % + | | ?????????????????????????# *!###### # | | ?????????????????????????# #????# # | | ?????????????????????????# #????###+### | | ?????????????????????????# ! #??????# | | ?????????????????????????# #??????# = | | ?????????????????????????# ! #??????# | | ?????????????????????????# #??????# | | ?????????????????????????# = #??????# | | ?????????????????????????#! #??????# | | ?????????????????????????# #??????##### | | ?????????????????????????# #??????????? | | ???????????????????????#########+############????? | | ?????????????????? #????? | | ?????????????????? #????? | | ?????????????????? #????? | +----------------------------------------------------+ Best States ------------- Heat Dissipation 82 Energy Generation 14 Energy Capacity 250 Matter Stores 360 Matter Capacity 400 Sight Range 16 Terrain Scan Density 10 Armor Coverage 225 Resistance: TH 10 Evasion (%) 40 Recoil Reduction 2 Item Schematics ----------------- None Robot Schematics ------------------ None Fabricated ------------ Adv. Plasma Cannon | x2 | -7/Factory | Preloaded Adv. Plasma Cannon | x2 | -7/Factory | Preloaded Alien Tech Used ----------------- None Achievements -------------- None Challenges ------------ None RPGLIKE | -11 -10 -9 -8 -7 --------- Run | Scr Mat Mat Mat Fac Levels Raised 4 | . . 2 1 1 XP Earned 10120 | 3000 800 2430 1800 2090 XP Spent 9000 | . . . 7050 1950 Upgrades 18 | . . . 11 7 Propulsion Slot 1 | . . . . 1 Utility Slot 1 | . . . 1 . Weapon Slot 3 | . . . 3 . Heat Dissipation 5 | . . . . 5 Inventory Capacity 1 | . . . 1 . Ranged Accuracy 7 | . . . 6 1 Protomatter Created 137 | . 60 16 9 52 Integrity Restored 333 | . 102 48 27 156 Core 333 | . 102 48 27 156 Protomatter Decayed 26 | . 26 . . . Game ------ Seed SniperCentriumCompressor Manual? 0 Play Time 00:16:26 Cumulative 206.1 hours Start 2020.01.25 @ 10:59:11 End 2020.01.26 @ 19:37:05 Sessions 2 Manual Loads 0 Difficulty Rogue Special Mode Winter2019/RPGLIKE Game No. 332 Rogue 331 Adventurer 0 Explorer 1 Win Type - Total 1 Types 1/0/0/0/0/0/0 Lore% 60 Gallery% 76 Achievement% 48 Wizard Run 0 Options --------- ASCII 1 Keyboard 1 Movement Vi Keybinds 0 Fullscreen 1 Font 14/Cog Map View 72x52 Tactical HUD 1 Map Filters NONE Filters LOW_CONTRAST(13,24,33) Steam 0 RUN: 05a03c20-ea94-4bda-babf-bd6c4e67510f